bitfinex-derivatives/quotes_SOLF0:USTF0_20241215
["timestamp","ask_amount","ask_price","bid_price","bid_amount"]
[1734243951940,4.2775,219.59,219.54,2.278]
[1734243957439,2.0,219.59,219.53,11.84291821]
[1734243957641,2.0,219.63,219.57,6.35168279]
[1734243958844,2.0,219.63,219.58,2.2776]
[1734243959639,6.35168279,219.64,219.57,6.35168279]
[1734243959845,8.35168279,219.64,219.59,2.2774]
[1734243960044,6.35168279,219.64,219.57,6.35168279]
[1734243960446,6.35168279,219.64,219.59,6.35168279]
[1734243960942,2.0,219.66,219.59,6.35168279]
[1734243961145,8.35168279,219.66,219.59,6.35168279]
[1734243962642,10.62848279,219.66,219.61,2.2772]
[1734243963745,2.0,219.66,219.62,2.2772]
[1734243964147,2.0,219.66,219.61,6.35168279]
[1734243964346,2.0,219.68,219.63,6.35168279]
[1734243965146,6.35168279,219.69,219.63,6.35168279]
[1734243965347,2.0,219.7,219.63,6.35168279]
[1734243965651,6.35168279,219.69,219.63,6.35168279]
[1734243965849,6.35168279,219.69,219.65,2.2769]
[1734243967548,2.0,219.71,219.67,2.2767]
[1734243968147,2.0,219.71,219.68,2.2765]
[1734243969646,8.62778279,219.73,219.68,2.2765]
[1734243969846,2.0,219.72,219.68,2.2765]
[1734243972547,4.2762,219.72,219.67,11.93800795]
[1734243972751,4.2762,219.72,219.67,14.21470795]
[1734243976353,2.2764,219.7,219.67,5.58632516]
[1734243977855,2.2765,219.69,219.64,6.35168279]
[1734243979659,2.2765,219.69,219.64,8.62868279]
[1734243979859,6.35168279,219.71,219.65,5.50244367]
[1734243980054,2.0,219.72,219.66,6.35168279]
[1734243980354,2.0,219.72,219.68,2.2766]
[1734243980559,2.0,219.72,219.68,8.62828279]
[1734243982052,2.0,219.72,219.68,6.35168279]
[1734243982359,2.0,219.72,219.69,2.2764]
[1734243984863,4.256,219.74,219.69,2.2764]
[1734243986761,2.276,219.74,219.69,2.2764]
[1734243987064,4.256,219.74,219.69,2.2764]
[1734243987757,1.98,219.74,219.69,2.2764]
[1734243990662,1.98,219.74,219.68,6.35168279]
[1734243990862,1.98,219.74,219.7,2.2764]
[1734243992364,4.256,219.74,219.7,2.2764]
[1734243999271,1.98,219.74,219.68,6.35168279]
[1734243999466,8.62778279,219.73,219.69,2.2765]
[1734244000068,2.2764,219.7,219.66,2.2768]
[1734244000272,2.2764,219.7,219.65,5.36336754]
[1734244000273,1.98,219.7,219.65,5.36336754]
[1734244000665,2.2765,219.69,219.65,5.36336754]
[1734244001176,1.98,219.7,219.66,6.35168279]
[1734244002775,1.98,219.7,219.67,2.2766]
[1734244003274,1.98,219.7,219.67,8.62828279]
[1734244008275,1.98,219.7,219.68,3.22636679]
[1734244008480,1.98,219.7,219.67,8.62828279]
[1734244008678,1.98,219.7,219.68,3.22636676]
[1734244008880,1.98,219.7,219.67,8.62828279]
[1734244009183,1.98,219.7,219.68,3.22756737]
[1734244009378,1.98,219.7,219.67,8.62828279]
[1734244009581,1.98,219.7,219.68,3.22756737]
[1734244009879,1.98,219.7,219.67,8.62828279]
[1734244010073,1.98,219.7,219.68,3.227565]
[1734244010273,1.98,219.7,219.67,8.62828279]
[1734244010475,1.98,219.7,219.68,3.22846921]
[1734244010678,1.98,219.7,219.67,14.12501327]
[1734244010875,1.98,219.7,219.68,3.22846921]
[1734244011179,1.98,219.7,219.67,7.77333048]
[1734244011379,1.98,219.7,219.68,3.22928478]
[1734244011680,1.98,219.7,219.67,14.12501327]
[1734244011882,1.98,219.7,219.68,3.22929711]
[1734244012079,1.98,219.7,219.67,11.84841327]
[1734244012275,1.98,219.7,219.68,5.50595436]
[1734244012478,1.98,219.7,219.69,3.22999789]
[1734244013377,1.98,219.7,219.69,3.23017099]
[1734244019283,1.98,219.7,219.67,5.49673048]
[1734244019485,1.98,219.7,219.68,3.2307157]
[1734244019680,1.98,219.7,219.67,5.49673048]
[1734244019983,1.98,219.7,219.68,3.23071923]
[1734244020187,1.98,219.7,219.67,5.49673048]
[1734244020188,1.98,219.7,219.67,14.12511327]
[1734244020381,1.98,219.7,219.69,6.35168279]
[1734244020687,1.98,219.75,219.7,2.2763]
[1734244020883,1.98,219.76,219.72,6.35168279]
[1734244021288,1.98,219.76,219.72,8.62778279]
[1734244022381,1.98,219.76,219.72,8.62788279]
[1734244022778,1.98,219.76,219.73,2.2762]
[1734244023382,1.98,219.76,219.74,2.2761]
[1734244023583,1.98,219.79,219.74,6.35168279]
[1734244023883,1.98,219.79,219.76,6.35168279]
[1734244024488,1.98,219.79,219.77,2.2758]
[1734244024692,1.98,219.79,219.76,6.35168279]
[1734244025585,1.98,219.79,219.75,2.2759]
[1734244026992,2.2758,219.77,219.72,8.62798279]
[1734244027295,6.35168279,219.77,219.7,9.22808279]
[1734244027489,6.35168279,219.77,219.71,3.22722635]
[1734244027792,6.35168279,219.77,219.7,9.22808279]
[1734244028097,2.276,219.76,219.71,2.2764]
[1734244028297,1.98,219.75,219.71,2.2764]
[1734244030196,1.98,219.75,219.71,8.62808279]
[1734244030399,1.98,219.75,219.72,6.35168279]
[1734244035104,4.256,219.75,219.72,6.35168279]
[1734244036404,1.98,219.75,219.69,6.35168279]
[1734244036798,1.98,219.75,219.7,5.38751199]
[1734244037001,2.2763,219.73,219.7,5.38751199]
[1734244040311,2.2766,219.7,219.64,2.2771]
[1734244040505,2.2766,219.7,219.66,6.35168279]
[1734244041310,2.2766,219.7,219.66,5.5334027]
[1734244041511,2.2766,219.7,219.66,11.88508549]
[1734244055919,2.2766,219.69,219.66,11.88508549]
[1734244057117,1.98,219.71,219.68,8.62838279]
[1734244057320,2.2763,219.73,219.7,6.35168279]
[1734244057518,1.98,219.72,219.7,6.35168279]
[1734244059017,4.2563,219.72,219.7,6.35168279]
[1734244059911,1.98,219.72,219.7,6.35168279]
[1734244060311,2.2762,219.74,219.7,6.35168279]
[1734244060515,4.2562,219.74,219.7,6.35168279]
[1734244060817,4.2562,219.74,219.72,6.35168279]
[1734244061817,2.2762,219.74,219.72,6.35168279]
[1734244062022,4.2562,219.74,219.72,6.35168279]
[1734244068027,4.2562,219.74,219.7,8.62818279]
[1734244069327,4.2562,219.74,219.7,6.35168279]
[1734244079038,2.2762,219.73,219.71,5.53692763]
[1734244079436,1.98,219.74,219.72,6.35168279]
[1734244079738,1.98,219.77,219.72,8.62798279]
[1734244080435,2.2759,219.76,219.72,8.62798279]
[1734244082135,2.2761,219.75,219.72,6.35168279]
[1734244083234,1.98,219.77,219.72,6.35168279]
[1734244083235,2.2761,219.74,219.72,6.35168279]
[1734244083931,2.2761,219.74,219.71,5.53692763]
[1734244083932,1.98,219.73,219.65,2.277]
[1734244084135,1.98,219.73,219.66,3.22487683]
[1734244084343,1.98,219.73,219.66,6.35168279]
[1734244084640,1.98,219.73,219.67,5.50745695]
[1734244085038,2.2766,219.7,219.67,5.50745695]
[1734244091242,4.2566,219.69,219.61,2.9427]
[1734244091443,4.2566,219.69,219.66,6.35168279]
[1734244095339,1.98,219.69,219.66,6.35168279]
[1734244096137,6.35168279,219.67,219.58,26.88560356]
[1734244096342,6.35168279,219.67,219.6,6.35168279]
[1734244097240,2.2771,219.65,219.61,5.59399028]
[1734244097435,1.98,219.64,219.61,5.59399028]
[1734244097946,1.98,219.67,219.62,6.35168279]
[1734244098248,1.98,219.67,219.64,6.35168279]
[1734244099644,1.98,219.67,219.64,8.62878279]
[1734244103637,2.2768,219.68,219.64,6.35168279]
[1734244103840,2.2769,219.66,219.62,6.35168279]
[1734244108038,2.2769,219.66,219.61,7.65777734]
[1734244108039,4.2568,219.67,219.64,6.35168279]
[1734244111243,1.98,219.67,219.64,6.35168279]
[1734244111443,1.98,219.67,219.66,6.35168279]
[1734244112036,2.2766,219.69,219.66,6.35168279]
[1734244117349,2.2767,219.68,219.66,6.35168279]
[1734244126454,1.98,219.69,219.66,6.35168279]
[1734244126654,2.2768,219.67,219.66,6.35168279]
[1734244140665,1.98,219.69,219.66,11.83296592]
[1734244140872,1.98,219.69,219.68,6.35168279]
[1734244141073,1.98,219.72,219.68,6.35168279]
[1734244141570,2.2765,219.7,219.68,6.35168279]
[1734244142673,2.2766,219.69,219.68,6.35168279]
[1734244142973,1.98,219.72,219.66,11.83296592]
[1734244143371,2.2768,219.68,219.66,11.83296592]
[1734244145980,2.2768,219.68,219.66,6.35168279]
[1734244148783,2.2768,219.68,219.66,11.74559484]
[1734244155191,1.98,219.69,219.61,2.9897]
[1734244155385,1.98,219.69,219.62,11.86094216]
[1734244155386,2.277,219.66,219.62,11.86094216]
[1734244155593,1.98,219.65,219.63,8.6555855]
[1734244155790,1.98,219.65,219.63,5.42362613]
[1734244155987,2.2772,219.64,219.61,6.35168279]
[1734244156189,2.2772,219.64,219.62,3.23224542]
[1734244156389,2.2772,219.64,219.61,6.35168279]
[1734244156591,2.2772,219.64,219.62,3.23213203]
[1734244156787,2.2772,219.64,219.61,6.35168279]
[1734244156989,2.2772,219.64,219.62,3.23213203]
[1734244157188,2.2772,219.64,219.61,6.35168279]
[1734244157392,2.2772,219.64,219.62,3.23171583]
[1734244157693,2.2772,219.64,219.61,6.35168279]
[1734244157890,2.2772,219.64,219.62,3.23171583]
[1734244158088,2.2772,219.63,219.61,6.35168279]
[1734244159798,2.2772,219.63,219.61,11.90565275]
[1734244161090,2.2772,219.64,219.61,11.90565275]
[1734244161598,2.2772,219.64,219.63,6.35168279]
[1734244162698,1.98,219.65,219.63,6.35168279]
[1734244163699,4.2571,219.65,219.63,6.35168279]
[1734244165995,1.98,219.65,219.63,6.35168279]
[1734244167900,2.2769,219.67,219.63,6.35168279]
[1734244167901,1.98,219.66,219.63,6.35168279]
[1734244171500,1.98,219.66,219.63,8.62888279]
[1734244178111,4.2569,219.66,219.63,6.35168279]
[1734244179711,4.2569,219.66,219.62,2.2773]
[1734244179911,4.2569,219.66,219.63,6.35168279]
[1734244183414,4.2569,219.66,219.64,5.33171336]
[1734244191011,2.277,219.65,219.64,5.33171336]
[1734244197225,4.2569,219.66,219.64,5.33171336]
[1734244201624,2.2769,219.66,219.64,5.33171336]
[1734244203925,2.2769,219.66,219.64,11.68339615]
[1734244204830,6.35168279,219.75,219.64,11.68339615]
[1734244205030,1.98,219.74,219.69,6.35168279]
[1734244205225,6.29012957,219.76,219.71,6.35168279]
[1734244205530,1.98,219.75,219.71,6.35168279]
[1734244206125,2.276,219.75,219.73,6.35168279]
[1734244206327,1.98,219.74,219.73,6.35168279]
[1734244208327,2.276,219.75,219.73,6.35168279]
[1734244208524,4.256,219.75,219.73,6.35168279]
[1734244209124,1.98,219.75,219.65,1.5362]
[1734244209330,6.35168279,219.74,219.68,6.35168279]
[1734244210230,2.2764,219.71,219.68,6.35168279]
[1734244210432,1.98,219.7,219.68,6.35168279]
[1734244210731,1.98,219.7,219.69,6.35168279]
[1734244210931,4.2561,219.73,219.69,6.35168279]
[1734244211126,4.2561,219.73,219.71,6.35168279]
[1734244212236,1.98,219.73,219.71,6.35168279]
[1734244217334,1.98,219.73,219.7,6.35168279]
[1734244218738,1.98,219.73,219.7,8.62808279]
[1734244220231,1.98,219.73,219.72,6.35168279]
[1734244220437,201.55376905,219.93,219.72,8.62788279]
[1734244220438,1.98,219.76,219.72,8.62788279]
[1734244220733,201.55376905,219.93,219.74,6.35168279]
[1734244220734,2.2757,219.78,219.74,6.35168279]
[1734244220939,1.98,219.77,219.74,6.35168279]
[1734244221138,2.2757,219.78,219.74,6.35168279]
[1734244221336,1.98,219.77,219.74,6.35168279]
[1734244222137,4.2557,219.78,219.74,6.35168279]
[1734244224038,1.98,219.78,219.65,3.5162]
[1734244224236,6.35168279,219.77,219.72,6.35168279]
[1734244225639,2.2759,219.75,219.72,6.35168279]
[1734244226639,1.98,219.74,219.72,6.35168279]
[1734244229144,1.98,219.74,219.72,8.62788279]
[1734244234064,2.2755,219.79,219.74,2.2759]
[1734244234266,1.98,219.78,219.75,6.35168279]
[1734244235663,1.98,219.78,219.75,8.62758279]
[1734244236157,4.2555,219.79,219.75,8.62758279]
[1734244236667,7.78008279,219.83,219.77,6.35168279]
[1734244236668,1.98,219.8,219.77,6.35168279]
[1734244238055,4.2554,219.8,219.77,6.35168279]
[1734244239558,5.57581291,219.87,219.73,5.52007117]
[1734244239559,52.08,219.94,219.8,2.2753]
[1734244239759,6.35168279,219.87,219.81,6.35168279]
[1734244239959,1.98,219.86,219.81,6.35168279]
[1734244240366,1.98,219.86,219.83,6.35168279]
[1734244241666,1.98,219.86,219.73,5.52007117]
[1734244241869,6.35168279,219.85,219.8,6.35168279]
[1734244242570,2.2751,219.83,219.8,6.35168279]
[1734244243369,1.98,219.83,219.82,6.35168279]
[1734244243569,6.35168279,219.9,219.82,6.35168279]
[1734244243769,1.98,219.89,219.84,6.35168279]
[1734244243969,37.77053797,219.92,219.86,6.35168279]
[1734244244175,1.98,219.91,219.86,6.35168279]
[1734244245371,37.77053797,219.92,219.86,6.35168279]
[1734244245575,2.2744,219.9,219.86,6.35168279]
[1734244246166,31.41885518,219.92,219.88,6.35168279]
[1734244246374,1.98,219.91,219.9,6.35168279]
[1734244246569,31.41885518,219.92,219.9,6.35168279]
[1734244247174,1.98,219.94,219.9,6.35168279]
[1734244247365,1.98,219.94,219.92,6.35168279]
[1734244248171,4.254,219.94,219.92,6.35168279]
[1734244253976,1.98,220.03,219.87,1.4436]
[1734244254274,6.35168279,220.02,219.95,6.35168279]
[1734244254670,2.2735,219.98,219.95,6.35168279]
[1734244254873,4.2535,219.98,219.95,6.35168279]
[1734244260180,1.98,219.98,219.95,6.35168279]
[1734244260379,8.33168279,219.98,219.91,5.57583056]
[1734244260682,8.33168279,219.98,219.92,6.35168279]
[1734244261179,1.98,219.98,219.92,6.35168279]
[1734244262681,2.2738,219.96,219.92,6.35168279]
[1734244262981,1.98,219.98,219.92,6.35168279]
[1734244263784,2.2739,219.95,219.92,6.35168279]
[1734244264481,8.33168279,219.98,219.92,6.35168279]
[1734244265381,8.33168279,219.98,219.87,1.4436]
[1734244265581,8.33168279,219.98,219.91,6.35168279]
[1734244266884,2.2739,219.94,219.88,2.2745]
[1734244267182,1.98,219.93,219.92,6.35168279]
[1734244267577,2.2738,219.96,219.92,6.35168279]
[1734244267783,4.2538,219.96,219.94,6.35168279]
[1734244268676,1.98,219.96,219.94,6.35168279]
[1734244268985,1.98,219.99,219.94,6.35168279]
[1734244269180,1.98,219.99,219.98,6.35168279]
[1734244270280,4.2534,219.99,219.98,6.35168279]
[1734244271479,2.2734,219.99,219.98,6.35168279]
[1734244272987,27.05469116,220.01,219.98,6.35168279]
[1734244273184,29.03469116,220.01,220.0,6.35168279]
[1734244273590,31.30789116,220.01,220.0,6.35168279]
[1734244273788,29.32789116,220.01,220.0,6.35168279]
[1734244274489,2.2732,220.01,220.0,6.35168279]
[1734244275184,1.98,220.03,220.0,6.35168279]
[1734244276082,1.98,220.03,220.02,6.35168279]
[1734244276485,1.98,220.04,220.02,6.35168279]
[1734244276683,2.273,220.03,220.02,6.35168279]
[1734244277992,1.98,220.04,220.02,6.35168279]
[1734244284195,4.253,220.04,220.02,6.35168279]
[1734244285893,2.273,220.04,220.02,6.35168279]
[1734244286093,1.98,220.05,220.0,6.35168279]
[1734244286396,1.98,220.05,219.99,6.35168279]
[1734244287296,2.2732,220.02,219.99,6.35168279]
[1734244291900,2.2732,220.02,220.01,6.35168279]
[1734244293601,0.35916,220.1,220.01,6.35168279]
[1734244293802,1.98,220.09,220.04,6.35168279]
[1734244294497,1.98,220.08,220.04,6.35168279]
[1734244294696,2.2727,220.07,220.04,6.35168279]
[1734244296803,1.98,220.08,220.04,6.35168279]
[1734244297102,2.2727,220.06,220.04,6.35168279]
[1734244297402,1.98,220.08,220.04,6.35168279]
[1734244298199,2.2728,220.05,220.04,6.35168279]
[1734244304305,1.98,220.08,220.02,6.35168279]
[1734244304506,2.273,220.03,220.02,6.35168279]
[1734244307104,1.98,220.04,219.97,1.5291]
[1734244307305,1.98,220.04,219.99,6.35168279]
[1734244307498,8.28865274,220.04,219.99,6.35168279]
[1734244307800,2.2733,220.0,219.99,6.35168279]
[1734244308001,4.2533,220.0,219.99,6.35168279]
[1734244309902,1.98,220.04,219.99,6.35168279]
[1734244310107,1.98,220.04,220.03,6.35168279]
[1734244311610,4.2529,220.04,220.03,6.35168279]
[1734244312704,6.3029657,220.09,220.04,2.2729]
[1734244312905,2.2723,220.1,220.08,6.35168279]
[1734244313505,2.2725,220.08,220.02,2.273]
[1734244313701,1.98,220.11,220.06,6.35168279]
[1734244314705,8.33168279,220.11,220.06,6.35168279]
[1734244315711,2.2726,220.07,220.06,6.35168279]
[1734244316012,4.2526,220.07,220.06,6.35168279]
[1734244316207,2.2727,220.06,219.99,2.2733]
[1734244316410,2.2727,220.06,220.05,6.35168279]
[1734244317911,1.98,220.07,219.96,1.4447]
[1734244318114,1.98,220.07,219.97,3.21914234]
[1734244318308,1.98,220.07,220.02,6.35168279]
[1734244318309,8.33168279,220.07,220.02,6.35168279]
[1734244318510,1.98,220.07,220.02,6.35168279]
[1734244320211,2.2729,220.05,220.02,6.35168279]
[1734244321511,5.54490989,220.17,220.02,6.35168279]
[1734244321512,1.98,220.06,220.04,6.35168279]
[1734244321710,1.98,220.07,220.04,6.35168279]
[1734244322821,1.98,220.07,220.06,6.35168279]
[1734244324114,1.98,220.07,220.02,2.2731]
[1734244324317,1.98,220.07,220.06,6.35168279]
[1734244328922,1.98,220.07,220.0,2.2732]
[1734244329119,1.98,220.07,219.96,1.4447]
[1734244329323,1.98,220.07,220.02,6.35168279]
[1734244330615,2.2728,220.05,220.02,6.35168279]
[1734244343234,6.35168279,220.06,219.96,1.4447]
[1734244343434,6.35168279,220.06,219.99,6.35168279]
[1734244344737,2.2733,220.01,219.99,6.35168279]
[1734244345036,1.98,220.0,219.99,6.35168279]
[1734244346036,4.3772,220.11,219.99,6.35168279]
[1734244346230,8.33168279,220.1,220.03,6.35168279]
[1734244346435,14.62191955,220.1,220.03,6.35168279]
[1734244347631,2.2729,220.04,220.03,6.35168279]
[1734244347934,4.2529,220.04,220.03,6.35168279]
[1734244350142,1.98,220.07,220.03,6.35168279]
[1734244350342,1.98,220.07,220.05,6.35168279]
[1734244351139,2.2726,220.07,220.05,6.35168279]
[1734244351339,1.98,220.09,220.05,6.35168279]
[1734244351535,1.98,220.09,220.07,6.35168279]
[1734244352441,4.2524,220.09,220.07,6.35168279]
[1734244353243,1.98,220.09,220.07,6.35168279]
[1734244358238,1.98,220.1,220.07,6.35168279]
[1734244359744,4.2523,220.1,220.07,6.35168279]
[1734244360048,1.98,220.1,220.05,6.35168279]
[1734244361751,1.98,220.1,220.01,1.5165]
[1734244361946,8.33168279,220.1,220.01,3.7897]
[1734244362249,8.33168279,220.1,220.04,6.35168279]
[1734244362451,8.33168279,220.1,220.02,6.35168279]
[1734244363650,2.2728,220.05,220.02,6.35168279]
[1734244366550,2.2728,220.05,220.04,6.35168279]
[1734244372159,2.2729,220.04,220.0,1.4752]
[1734244372354,2.2729,220.04,220.02,6.35168279]
[1734244376158,2.2731,220.02,219.99,6.35168279]
[1734244376462,1.98,220.02,219.99,6.35168279]
[1734244377461,1.98,220.02,219.96,1.3974]
[1734244377664,1.98,220.02,219.97,6.35168279]
[1734244378559,2.2735,219.99,219.97,6.35168279]
[1734244382965,1.98,220.02,219.97,6.35168279]
[1734244383162,1.98,220.02,220.01,6.35168279]
[1734244385372,1.98,220.04,220.01,8.62488279]
[1734244385871,1.98,220.04,220.03,6.35168279]
[1734244389669,6.35168279,220.09,220.03,6.35168279]
[1734244389872,4.2526,220.08,220.03,6.35168279]
[1734244390970,2.2726,220.08,220.05,6.35168279]
[1734244391165,1.98,220.07,220.05,6.35168279]
[1734244393968,4.2526,220.07,220.05,6.35168279]
[1734244394177,1.98,220.07,220.03,6.35168279]
[1734244394473,1.98,220.07,219.96,1.3974]
[1734244394675,1.98,220.07,220.02,6.35168279]
[1734244395775,2.2729,220.05,220.02,6.35168279]
[1734244396676,4.2529,220.05,220.02,6.35168279]
[1734244397977,1.98,220.05,220.04,6.35168279]
[1734244399577,2.2729,220.04,220.02,6.35168279]
[1734244400071,1.98,220.05,220.02,6.35168279]
[1734244400277,4.2528,220.05,220.02,6.35168279]
[1734244403876,1.98,220.05,220.02,6.35168279]
[1734244404076,2.2729,220.04,220.02,6.35168279]
[1734244405978,1.98,220.05,220.02,6.35168279]
[1734244406279,1.98,220.05,220.04,6.35168279]
[1734244409982,27.69786167,220.12,220.04,6.35168279]
[1734244410283,27.69786167,220.12,220.1,6.35168279]
[1734244410478,1.98,220.13,220.1,6.35168279]
[1734244411580,4.252,220.13,220.1,6.35168279]
[1734244411976,6.50249655,220.16,220.1,6.35168279]
[1734244412180,6.50249655,220.16,220.03,1.3928]
[1734244412181,1.98,220.15,220.12,6.35168279]
[1734244414283,1.98,220.15,220.14,6.35168279]
[1734244414981,1.98,220.17,220.14,6.35168279]
[1734244422086,1.98,220.19,220.14,6.35168279]
[1734244422291,1.98,220.19,220.16,6.35168279]
[1734244422889,6.35168279,220.22,220.16,6.35168279]
[1734244423191,1.98,220.21,220.16,6.35168279]
[1734244423588,4.2512,220.21,220.16,6.35168279]
[1734244426183,2.2711,220.22,220.18,6.35168279]
[1734244428088,4.2511,220.22,220.18,6.35168279]
[1734244429194,1.98,220.22,220.18,6.35168279]
[1734244429494,2.2713,220.2,220.16,6.35168279]
[1734244429994,1.98,220.22,220.16,6.35168279]
[1734244430195,2.2714,220.19,220.16,6.35168279]
[1734244436903,2.2714,220.18,220.16,6.35168279]
[1734244441907,1.98,220.17,220.12,6.35168279]
[1734244443610,2.2718,220.15,220.12,6.35168279]
[1734244446003,2.2718,220.15,220.13,5.43931878]
[1734244446203,1.98,220.17,220.12,6.35168279]
[1734244446509,2.272,220.13,220.12,6.35168279]
[1734244451512,2.2719,220.14,220.12,6.35168279]
[1734244455110,2.272,220.13,220.1,6.35168279]
[1734244455310,4.252,220.13,220.1,6.35168279]
[1734244457016,2.2721,220.12,220.1,6.35168279]
[1734244458514,2.2721,220.12,220.1,11.75524499]
[1734244461114,4.252,220.13,220.1,11.75524499]
[1734244462919,2.2721,220.12,220.1,5.4035622]
[1734244471325,2.2724,220.09,220.05,6.35168279]
[1734244471524,4.2524,220.09,220.0,1.98]
[1734244471727,4.2524,220.09,220.05,6.35168279]
[1734244473823,2.2725,220.08,220.03,2.2729]
[1734244474022,2.2725,220.08,220.05,6.35168279]
[1734244474228,2.2725,220.08,220.05,11.7337925]
[1734244478633,2.2725,220.08,220.05,6.35168279]
[1734244482637,2.2726,220.07,220.03,6.35168279]
[1734244482835,6.35168279,220.08,219.99,2.8665]
[1734244483030,6.35168279,220.08,220.01,6.35168279]
[1734244483435,1.98,220.09,219.99,2.8665]
[1734244483436,1.98,220.09,220.03,6.35168279]
[1734244484046,1.98,220.08,220.05,6.35168279]
[1734244484238,1.98,220.08,220.07,6.35168279]
[1734244484633,1.98,220.1,220.07,6.35168279]
[1734244487440,1.98,220.1,220.06,2.2727]
[1734244487944,1.98,220.1,220.06,8.62438279]
[1734244491949,1.98,220.1,220.06,6.35168279]
[1734244492350,4.2523,220.1,220.06,6.35168279]
[1734244494645,2.2726,220.08,220.05,5.56277982]
[1734244494846,8.33168279,220.1,220.05,5.56277982]
[1734244497552,2.2726,220.07,220.05,5.56277982]
[1734244504457,8.33168279,220.1,220.03,6.35168279]
[1734244504757,6.35168279,220.08,220.03,5.54117262]
[1734244504957,6.35168279,220.08,220.01,6.35168279]
[1734244505850,6.35168279,220.06,219.99,1.4591]
[1734244506055,6.35168279,220.04,219.98,7.80528279]
[1734244506250,1.98,220.03,219.98,7.80528279]
[1734244506454,2.2732,220.01,219.98,6.35168279]
[1734244507656,2.2733,220.0,219.99,5.41856837]
[1734244508159,1.98,220.03,219.93,1.4722]
[1734244508160,6.35168279,220.02,219.93,1.4722]
[1734244508359,6.35168279,220.02,219.94,9.57337376]
[1734244508555,6.35168279,220.02,219.94,6.35168279]
[1734244509659,2.2736,219.98,219.95,5.42621015]
[1734244514060,6.35168279,219.98,219.8,50.67728939]
[1734244514259,1.98,219.99,219.89,6.35168279]
[1734244514260,6.35168279,219.94,219.89,6.35168279]
[1734244514567,1.98,219.93,219.88,6.35168279]
[1734244515666,2.2742,219.91,219.86,8.62638279]
[1734244516060,2.2742,219.91,219.89,5.55902188]
[1734244516361,2.2742,219.91,219.86,8.62638279]
[1734244516566,2.2743,219.9,219.86,6.35168279]
[1734244517267,2.2743,219.9,219.86,11.7243587]
[1734244520166,2.2743,219.9,219.86,5.37267591]
[1734244520760,1.98,219.89,219.86,5.37267591]
[1734244521569,1.98,219.89,219.86,11.7243587]
[1734244523669,1.98,219.89,219.87,2.2746]
[1734244529673,1.98,219.89,219.86,5.37267591]
[1734244529879,1.98,219.89,219.85,2.2748]
[1734244530175,1.98,219.89,219.83,11.59918279]
[1734244530379,8.33168279,219.89,219.83,11.59918279]
[1734244530573,10.60618279,219.89,219.83,9.32418279]
[1734244530773,10.60618279,219.89,219.84,2.275]
[1734244532678,8.33168279,219.89,219.84,2.275]
[1734244532879,6.35168279,219.87,219.81,2.2753]
[1734244533073,27.05762013,219.98,219.83,6.35168279]
[1734244533379,8.62598279,219.91,219.87,2.2746]
[1734244533579,1.98,219.9,219.85,6.35168279]
[1734244534278,4.2544,219.9,219.85,8.62648279]
[1734244535384,6.35168279,219.89,219.85,2.2748]
[1734244539084,6.35168279,219.89,219.83,6.35168279]
[1734244539280,6.35168279,219.89,219.86,2.2748]
[1734244540879,2.2746,219.88,219.84,2.275]
[1734244541185,6.35168279,219.89,219.81,6.35168279]
[1734244542584,2.2747,219.87,219.83,2.2751]
[1734244543475,2.2747,219.87,219.84,5.38319246]
[1734244543878,1.98,219.86,219.81,6.35168279]
[1734244544075,4.2549,219.86,219.81,8.62698279]
[1734244545085,2.275,219.84,219.8,2.2754]
[1734244545480,2.275,219.84,219.81,5.43666714]
[1734244547590,1.98,219.86,219.83,6.35168279]
[1734244547785,6.35168279,219.89,219.83,6.35168279]
[1734244547990,1.98,219.88,219.83,6.35168279]
[1734244548688,6.35168279,219.89,219.83,6.35168279]
[1734244548689,1.98,219.89,219.83,6.35168279]
[1734244549488,1.98,219.89,219.85,2.2749]
[1734244549889,6.35168279,219.88,219.83,6.35168279]
[1734244550090,1.98,219.87,219.83,8.62678279]